{"text_format":"3","workbook":"xlsx","n_sheets":1,"sheets":["TROŠKOVI PREUREĐENJA"],"not_rendered":{"images":2,"defined_names":4},"read":"whole","date_system":"1900"}

{"sheet":"TROŠKOVI PREUREĐENJA","index":0,"n_rows":28,"n_cols":8,"rows_kept":28,"merged":[[25,1,25,5],[26,1,26,5],[27,1,27,5]]}
[null,"TABLICA TROŠKOVA PREUREĐENJA KUHINJE"]
[]
[null,"Kategorija","Stavke","Količina","Procijenjeni trošak","Stvarni trošak","Ukupni procijenjeni trošak","Ukupni stvarni trošak"]
[null,"Kuhinjski elementi","Donji elementi: modularni, standardni (kol. u metrima)",25,{"v":5,"d":"5.00 kn"},null,{"$f":"Podaci[[#This Row],[Količina]]*Podaci[[#This Row],[Procijenjeni trošak]]","v":{"v":125,"d":"125 kn"}},{"$f":"Podaci[[#This Row],[Količina]]*Podaci[[#This Row],[Stvarni trošak]]","v":{"v":0,"d":"0 kn"}}]
[null,"Kuhinjski elementi","Gornji elementi: modularni, standardni (kol. u metrima)",25,{"v":3.5,"d":"3.50 kn"},null,{"$f":"Podaci[[#This Row],[Količina]]*Podaci[[#This Row],[Procijenjeni trošak]]","v":{"v":87.5,"d":"88 kn"}},{"$f":"Podaci[[#This Row],[Količina]]*Podaci[[#This Row],[Stvarni trošak]]","v":{"v":0,"d":"0 kn"}}]
[null,"Kuhinjski aparati","Perilica za suđe: standardna",1,{"v":250,"d":"250.00 kn"},null,{"$f":"Podaci[[#This Row],[Količina]]*Podaci[[#This Row],[Procijenjeni trošak]]","v":{"v":250,"d":"250 kn"}},{"$f":"Podaci[[#This Row],[Količina]]*Podaci[[#This Row],[Stvarni trošak]]","v":{"v":0,"d":"0 kn"}}]
[null,"Kuhinjski aparati","Drobilica smeća: standardna",1,{"v":175,"d":"175.00 kn"},null,{"$f":"Podaci[[#This Row],[Količina]]*Podaci[[#This Row],[Procijenjeni trošak]]","v":{"v":175,"d":"175 kn"}},{"$f":"Podaci[[#This Row],[Količina]]*Podaci[[#This Row],[Stvarni trošak]]","v":{"v":0,"d":"0 kn"}}]
[null,"Uređaji za kuhanje","Štednjak: ugradbeni standardni",1,{"v":375,"d":"375.00 kn"},null,{"$f":"Podaci[[#This Row],[Količina]]*Podaci[[#This Row],[Procijenjeni trošak]]","v":{"v":375,"d":"375 kn"}},{"$f":"Podaci[[#This Row],[Količina]]*Podaci[[#This Row],[Stvarni trošak]]","v":{"v":0,"d":"0 kn"}}]
[null,"Uređaji za kuhanje","Mikrovalna pećnica: standardna",1,{"v":300,"d":"300.00 kn"},null,{"$f":"Podaci[[#This Row],[Količina]]*Podaci[[#This Row],[Procijenjeni trošak]]","v":{"v":300,"d":"300 kn"}},{"$f":"Podaci[[#This Row],[Količina]]*Podaci[[#This Row],[Stvarni trošak]]","v":{"v":0,"d":"0 kn"}}]
[null,"Radna ploha","Masivna ploha (kol. u metrima)",23,{"v":10,"d":"10.00 kn"},null,{"$f":"Podaci[[#This Row],[Količina]]*Podaci[[#This Row],[Procijenjeni trošak]]","v":{"v":230,"d":"230 kn"}},{"$f":"Podaci[[#This Row],[Količina]]*Podaci[[#This Row],[Stvarni trošak]]","v":{"v":0,"d":"0 kn"}}]
[null,"Vrata","Unutarnji dio: furnirano drvo",1,{"v":65,"d":"65.00 kn"},null,{"$f":"Podaci[[#This Row],[Količina]]*Podaci[[#This Row],[Procijenjeni trošak]]","v":{"v":65,"d":"65 kn"}},{"$f":"Podaci[[#This Row],[Količina]]*Podaci[[#This Row],[Stvarni trošak]]","v":{"v":0,"d":"0 kn"}}]
[null,"Dodaci","Dodaci: kuhalo vode, standardno",1,{"v":120,"d":"120.00 kn"},null,{"$f":"Podaci[[#This Row],[Količina]]*Podaci[[#This Row],[Procijenjeni trošak]]","v":{"v":120,"d":"120 kn"}},{"$f":"Podaci[[#This Row],[Količina]]*Podaci[[#This Row],[Stvarni trošak]]","v":{"v":0,"d":"0 kn"}}]
[null,"Dodaci","Dodaci: posudica za sapun",1,{"v":40,"d":"40.00 kn"},null,{"$f":"Podaci[[#This Row],[Količina]]*Podaci[[#This Row],[Procijenjeni trošak]]","v":{"v":40,"d":"40 kn"}},{"$f":"Podaci[[#This Row],[Količina]]*Podaci[[#This Row],[Stvarni trošak]]","v":{"v":0,"d":"0 kn"}}]
[null,"Slavine","Slavina: s ručicom, standardna",1,{"v":130,"d":"130.00 kn"},null,{"$f":"Podaci[[#This Row],[Količina]]*Podaci[[#This Row],[Procijenjeni trošak]]","v":{"v":130,"d":"130 kn"}},{"$f":"Podaci[[#This Row],[Količina]]*Podaci[[#This Row],[Stvarni trošak]]","v":{"v":0,"d":"0 kn"}}]
[null,"Podovi","Laminat (kol. u kvadratnim metrima)",165,{"v":3.5,"d":"3.50 kn"},null,{"$f":"Podaci[[#This Row],[Količina]]*Podaci[[#This Row],[Procijenjeni trošak]]","v":{"v":577.5,"d":"578 kn"}},{"$f":"Podaci[[#This Row],[Količina]]*Podaci[[#This Row],[Stvarni trošak]]","v":{"v":0,"d":"0 kn"}}]
[null,"Strojevi za rublje","Perilica: standardna",1,{"v":500,"d":"500.00 kn"},null,{"$f":"Podaci[[#This Row],[Količina]]*Podaci[[#This Row],[Procijenjeni trošak]]","v":{"v":500,"d":"500 kn"}},{"$f":"Podaci[[#This Row],[Količina]]*Podaci[[#This Row],[Stvarni trošak]]","v":{"v":0,"d":"0 kn"}}]
[null,"Strojevi za rublje","Sušilica: standardna",1,{"v":375,"d":"375.00 kn"},null,{"$f":"Podaci[[#This Row],[Količina]]*Podaci[[#This Row],[Procijenjeni trošak]]","v":{"v":375,"d":"375 kn"}},{"$f":"Podaci[[#This Row],[Količina]]*Podaci[[#This Row],[Stvarni trošak]]","v":{"v":0,"d":"0 kn"}}]
[null,"Rasvjeta","Rasvjeta: ugradbena rasvjetna tijela",4,{"v":35,"d":"35.00 kn"},null,{"$f":"Podaci[[#This Row],[Količina]]*Podaci[[#This Row],[Procijenjeni trošak]]","v":{"v":140,"d":"140 kn"}},{"$f":"Podaci[[#This Row],[Količina]]*Podaci[[#This Row],[Stvarni trošak]]","v":{"v":0,"d":"0 kn"}}]
[null,"Hladnjaci","Hladnjak: samostojeći, luksuzni",1,{"v":1200,"d":"1,200.00 kn"},null,{"$f":"Podaci[[#This Row],[Količina]]*Podaci[[#This Row],[Procijenjeni trošak]]","v":{"v":1200,"d":"1,200 kn"}},{"$f":"Podaci[[#This Row],[Količina]]*Podaci[[#This Row],[Stvarni trošak]]","v":{"v":0,"d":"0 kn"}}]
[null,"Sudoperi","Dvostruki od nehrđajućeg čelika, luksuzni",1,{"v":125,"d":"125.00 kn"},null,{"$f":"Podaci[[#This Row],[Količina]]*Podaci[[#This Row],[Procijenjeni trošak]]","v":{"v":125,"d":"125 kn"}},{"$f":"Podaci[[#This Row],[Količina]]*Podaci[[#This Row],[Stvarni trošak]]","v":{"v":0,"d":"0 kn"}}]
[null,"Nape","Napa: ventilacijska, standardna",1,{"v":180,"d":"180.00 kn"},null,{"$f":"Podaci[[#This Row],[Količina]]*Podaci[[#This Row],[Procijenjeni trošak]]","v":{"v":180,"d":"180 kn"}},{"$f":"Podaci[[#This Row],[Količina]]*Podaci[[#This Row],[Stvarni trošak]]","v":{"v":0,"d":"0 kn"}}]
[null,"Zidovi","Zidna obloga (kol. u kvadratnim metrima)",70,{"v":2,"d":"2.00 kn"},null,{"$f":"Podaci[[#This Row],[Količina]]*Podaci[[#This Row],[Procijenjeni trošak]]","v":{"v":140,"d":"140 kn"}},{"$f":"Podaci[[#This Row],[Količina]]*Podaci[[#This Row],[Stvarni trošak]]","v":{"v":0,"d":"0 kn"}}]
[null,"Prozori","Klizni mehanizam",2,{"v":120,"d":"120.00 kn"},null,{"$f":"Podaci[[#This Row],[Količina]]*Podaci[[#This Row],[Procijenjeni trošak]]","v":{"v":240,"d":"240 kn"}},{"$f":"Podaci[[#This Row],[Količina]]*Podaci[[#This Row],[Stvarni trošak]]","v":{"v":0,"d":"0 kn"}}]
[null,"Ostalo",{"$nulls":4},{"$f":"Podaci[[#This Row],[Količina]]*Podaci[[#This Row],[Procijenjeni trošak]]","v":{"v":0,"d":"0 kn"}},{"$f":"Podaci[[#This Row],[Količina]]*Podaci[[#This Row],[Stvarni trošak]]","v":{"v":0,"d":"0 kn"}}]
[null,"Zbroj",null,null,{"$f":"SUBTOTAL(109,Podaci[Procijenjeni trošak])","v":{"v":4014,"d":"4,014.00 kn"}},{"$f":"SUBTOTAL(109,Podaci[Stvarni trošak])","v":{"v":0,"d":"0.00 kn"}},{"$f":"SUBTOTAL(109,Podaci[Ukupni procijenjeni trošak])","v":{"v":5375,"d":"5,375.00 kn"}},{"$f":"SUBTOTAL(109,Podaci[Ukupni stvarni trošak])","v":{"v":0,"d":"0.00 kn"}}]
[null,"Podiznos",{"$nulls":4},{"$f":"SUBTOTAL(109,Podaci[Ukupni procijenjeni trošak])","v":{"v":5375,"d":"5,375.00 kn"}},{"$f":"SUBTOTAL(109,Podaci[Ukupni stvarni trošak])","v":{"v":0,"d":"0.00 kn"}}]
[null,"Neočekivani troškovi – 30 % više",{"$nulls":4},{"$f":"G26*0.3","v":{"v":1612.5,"d":"1,612.50 kn"}},{"$f":"H26*0.3","v":{"v":0,"d":"0.00 kn"}}]
[null,"Ukupno",{"$nulls":4},{"$f":"SUM(G26:G27)","v":{"v":6987.5,"d":"6,987.50 kn"}},{"$f":"SUM(H26:H27)","v":{"v":0,"d":"0.00 kn"}}]